lending/lending_fUSD_20260206
["ID","MTS","AMOUNT","RATE_DAILY","PERIOD"]
[404653752,1770383445529,-500.0,0.00043024,120]
[404653753,1770383445539,-500.0,0.00043024,120]
[404653754,1770383445548,-500.0,0.00043024,120]
[404653755,1770383445557,-500.0,0.00043024,120]
[404653756,1770383445566,-500.0,0.00043024,120]
[404653757,1770383445575,-500.0,0.00043024,120]
[404653758,1770383445584,-500.0,0.00043024,120]
[404653759,1770383445593,-500.0,0.00043024,120]
[404653760,1770383445602,-500.0,0.00043024,120]
[404653761,1770383445611,-500.0,0.00043024,120]
[404653762,1770383445621,-500.0,0.00043024,120]
[404653763,1770383445630,-500.0,0.00043024,120]
[404653764,1770383445640,-500.0,0.00043024,120]
[404653765,1770383445649,-500.0,0.00043024,120]
[404653767,1770383445659,-500.0,0.00043024,120]
[404653768,1770383445669,-500.0,0.00043024,120]
[404653770,1770383445679,-500.0,0.00043024,120]
[404653771,1770383445688,-500.0,0.00043024,120]
[404653772,1770383445697,-500.0,0.00043024,120]
[404653773,1770383445707,-151.0,0.00043024,60]
[404653774,1770383445719,-151.0,0.00043024,120]
[404653775,1770383445729,-500.0,0.00043024,120]
[404653776,1770383445739,-500.0,0.00043024,120]
[404653777,1770383445748,-500.0,0.00043024,120]
[404653778,1770383445758,-500.0,0.00043024,120]
[404653779,1770383445768,-500.0,0.00043024,120]
[404653780,1770383445778,-500.0,0.00043024,120]
[404653781,1770383445788,-500.0,0.00043024,120]
[404653782,1770383445798,-500.0,0.00043024,120]
[404653783,1770383445808,-500.0,0.00043024,120]
[404653784,1770383445817,-500.0,0.00043024,120]
[404653785,1770383445827,-500.0,0.00043024,120]
[404653786,1770383445836,-500.0,0.00043024,120]
[404653787,1770383445846,-500.0,0.00043024,120]
[404653788,1770383445855,-500.0,0.00043024,120]
[404653789,1770383445865,-500.0,0.00043024,120]
[404653790,1770383445874,-500.0,0.00043024,120]
[404653791,1770383445884,-500.0,0.00043024,120]
[404653792,1770383445893,-500.0,0.00043024,120]
[404653793,1770383445903,-500.0,0.00043024,120]
[404653794,1770383445912,-500.0,0.00043024,120]
[404653795,1770383445921,-500.0,0.00043024,120]
[404653796,1770383445930,-500.0,0.00043024,120]
[404653797,1770383445939,-500.0,0.00043024,120]
[404653798,1770383445948,-500.0,0.00043024,120]
[404653799,1770383445957,-500.0,0.00043024,120]
[404653800,1770383445966,-500.0,0.00043024,120]
[404653801,1770383445976,-179.358773,0.00043024,120]
[404653802,1770383445985,-500.0,0.00043024,120]
[404653803,1770383445996,-500.0,0.00043024,120]
[404653804,1770383446005,-500.0,0.00043024,120]
[404653805,1770383446014,-500.0,0.00043024,120]
[404653806,1770383446024,-500.0,0.00043024,120]
[404653807,1770383446034,-648.0,0.00043024,120]
[404653808,1770383446044,-151.0,0.00043024,120]
[404653809,1770383446054,-151.0,0.00043024,120]
[404653810,1770383446064,-500.0,0.00043024,120]
[404653811,1770383446073,-500.0,0.00043024,120]
[404653812,1770383446083,-500.0,0.00043024,120]
[404653813,1770383446092,-500.0,0.00043024,120]
[404653814,1770383446102,-500.0,0.00043024,120]
[404653815,1770383446112,-500.0,0.00043024,120]
[404653816,1770383446121,-500.0,0.00043024,120]
[404653817,1770383446131,-500.0,0.00043024,120]
[404653818,1770383446140,-500.0,0.00043024,120]
[404653819,1770383446150,-500.0,0.00043024,120]
[404653820,1770383446160,-500.0,0.00043024,120]
[404653821,1770383446169,-500.0,0.00043024,120]
[404653822,1770383446179,-500.0,0.00043024,120]
[404653823,1770383446189,-500.0,0.00043024,120]
[404653824,1770383446198,-500.0,0.00043024,120]
[404653825,1770383446207,-500.0,0.00043024,120]
[404653826,1770383446217,-909.0,0.00043024,120]
[404653827,1770383446226,-173.256273,0.00043024,120]
[404653828,1770383446235,-199.281057,0.00043024,120]
[404653829,1770383446245,-151.0,0.00043024,120]
[404653830,1770383446255,-151.0,0.00043024,120]
[404653831,1770383446264,-151.0,0.00043024,120]
[404653832,1770383446274,-151.0,0.00043024,120]
[404653833,1770383446284,-151.0,0.00043024,120]
[404653834,1770383446293,-196.597711,0.00043024,120]
[404653835,1770383446302,-151.0,0.00043024,28]
[404653836,1770383446311,-151.0,0.00043024,28]
[404653837,1770383446321,-164.972697,0.00043024,120]
[404653838,1770383446331,-151.0,0.00043024,120]
[404653839,1770383446340,-164.972697,0.00043024,120]
[404653840,1770383446350,-151.0,0.00043024,120]
[404653841,1770383446360,-164.972697,0.00043024,120]
[404653842,1770383446369,-164.972697,0.00043024,120]
[404653843,1770383446378,-151.0,0.00043024,120]
[404653844,1770383446387,-151.0,0.00043024,120]
[404653845,1770383446396,-435.172406,0.00043024,120]
[404653846,1770383446406,-435.172406,0.00043024,120]
[404653847,1770383446415,-435.172406,0.00043024,120]
[404653848,1770383446424,-435.172406,0.00043024,120]
[404653849,1770383446434,-151.0,0.00043024,120]
[404653851,1770383446444,-157.415289,0.00043024,90]
[404653853,1770383446452,-500.0,0.00043024,120]
[404653855,1770383446461,-500.0,0.00043024,120]
[404653856,1770383446471,-157.415289,0.00043024,90]
[404653858,1770383446481,-500.0,0.00043024,120]
[404653860,1770383446490,-500.0,0.00043024,120]
[404653862,1770383446501,-500.0,0.00043024,120]
[404653864,1770383446511,-500.0,0.00043024,120]
[404653866,1770383446520,-157.415289,0.00043024,90]
[404653868,1770383446531,-500.0,0.00043024,120]
[404653870,1770383446543,-500.0,0.00043024,120]
[404653872,1770383446554,-500.0,0.00043024,120]
[404653874,1770383446565,-500.0,0.00043024,120]
[404653876,1770383446574,-157.415289,0.00043024,90]
[404653878,1770383446583,-500.0,0.00043024,120]
[404653880,1770383446593,-500.0,0.00043024,120]
[404653882,1770383446602,-500.0,0.00043024,120]
[404653885,1770383446611,-500.0,0.00043024,120]
[404653888,1770383446620,-500.0,0.00043024,120]
[404653891,1770383446630,-500.0,0.00043024,120]
[404653893,1770383446639,-500.0,0.00043024,120]
[404653900,1770383446690,-500.0,0.00043026,60]
[404653902,1770383446700,-800.0,0.00043026,60]
[404653904,1770383446709,-151.0,0.0004304,120]
[404653906,1770383446718,-188.802777,0.0004304,120]
[404653908,1770383446730,-341.96,0.0004304,120]
[404653910,1770383446739,-341.96,0.0004304,120]
[404653912,1770383446748,-1710.537627,0.0004304,120]
[404653914,1770383446758,-341.96,0.0004304,120]
[404653916,1770383446767,-1710.537627,0.0004304,120]
[404653918,1770383446779,-341.96,0.0004304,120]
[404653920,1770383446787,-1710.537627,0.0004304,120]
[404653922,1770383446797,-1710.537627,0.0004304,120]
[404653924,1770383446807,-65938.0,0.0004304,30]
[404653926,1770383446815,-1081.70201827,0.00043095,120]
[404653928,1770383446824,-1123.596966,0.00043238,50]
[404653930,1770383446833,-1120.8292048,0.00043238,50]
[404653932,1770383446843,-883.42132442,0.00043238,50]
[404653934,1770383446852,-150.0,0.0004324,120]
[404653936,1770383446861,-163.0,0.00043257,16]
[404653938,1770383446871,-1000.0,0.00043273,30]
[404653940,1770383446880,-182.72,0.00043281,14]
[404653942,1770383446889,-1000.0,0.00043282,120]
[404653944,1770383446898,-1000.0,0.00043282,120]
[404653946,1770383446907,-1000.0,0.00043282,120]
[404653948,1770383446916,-1000.0,0.00043282,120]
[404653950,1770383446926,-1000.0,0.00043282,120]
[404653952,1770383446936,-651.342,0.00043282,120]
[404653954,1770383446945,-500.0,0.00043287,120]
[404653956,1770383446954,-500.0,0.00043287,120]
[404653957,1770383446963,-500.0,0.00043287,120]
[404653959,1770383446972,-500.0,0.00043287,120]
[404653961,1770383446981,-500.0,0.00043287,120]
[404653963,1770383446991,-500.0,0.00043287,120]
[404653965,1770383447000,-500.0,0.00043287,120]
[404653967,1770383447010,-500.0,0.00043287,120]
[404653969,1770383447019,-217.04796682,0.00043287,120]
[404653971,1770383447029,-250.57241058,0.00043287,120]
[404653973,1770383447040,-1271.78,0.00043287,120]
[404653975,1770383447049,-1271.78,0.00043287,120]
[404653978,1770383447059,-1271.78,0.00043287,120]
[404653979,1770383447068,-1271.78,0.00043287,120]
[404653982,1770383447078,-1271.78,0.00043287,120]
[404653983,1770383447088,-1271.78,0.00043287,120]
[404653985,1770383447097,-1271.78,0.00043287,120]
[404653987,1770383447107,-1271.78,0.00043287,120]
[404653989,1770383447116,-1271.78,0.00043287,120]
[404653991,1770383447126,-1271.78,0.00043287,120]
[404653993,1770383447135,-1271.78,0.00043287,120]
[404653995,1770383447146,-1271.78,0.00043287,120]
[404653997,1770383447155,-1271.78,0.00043287,120]
[404653999,1770383447164,-1271.78,0.00043287,120]
[404654001,1770383447175,-1271.78,0.00043287,120]
[404654003,1770383447184,-1271.78,0.00043287,120]
[404654005,1770383447194,-151.0,0.00043287,120]
[404654007,1770383447204,-500.0,0.00043287,120]
[404654009,1770383447214,-500.0,0.00043287,120]
[404654010,1770383447223,-500.0,0.00043287,120]
[404654011,1770383447232,-500.0,0.00043287,120]
[404654012,1770383447242,-500.0,0.00043287,120]
[404654013,1770383447252,-500.0,0.00043287,120]
[404654014,1770383447262,-500.0,0.00043287,120]
[404654015,1770383447271,-500.0,0.00043287,120]
[404654016,1770383447281,-500.0,0.00043287,120]
[404654017,1770383447291,-500.0,0.00043287,120]
[404654018,1770383447300,-459.83553265,0.00043287,120]
[404654019,1770383447309,-500.0,0.00043287,120]
[404654020,1770383447319,-500.0,0.00043287,120]
[404654021,1770383447328,-481.54477839,0.00043287,120]
[404654022,1770383447337,-500.0,0.00043287,120]
[404654023,1770383447347,-500.0,0.00043287,120]
[404654024,1770383447356,-500.0,0.00043287,120]
[404654025,1770383447365,-378.6893,0.00043287,120]
[404654026,1770383447375,-500.0,0.00043287,120]
[404654027,1770383447384,-500.0,0.00043287,120]
[404654028,1770383447394,-500.0,0.00043287,120]
[404654029,1770383447403,-622.99429207,0.00043287,120]
[404654030,1770383447412,-500.0,0.00043287,120]
[404654031,1770383447422,-500.0,0.00043287,120]
[404654032,1770383447431,-500.0,0.00043287,120]
[404654033,1770383447441,-500.0,0.00043287,120]
[404654034,1770383447451,-500.0,0.00043287,120]
[404654035,1770383447461,-500.0,0.00043287,120]
[404654036,1770383447470,-208.65663609,0.00043287,120]
[404654037,1770383447479,-500.0,0.00043287,120]
[404654038,1770383447488,-500.0,0.00043287,120]
[404654039,1770383447498,-500.0,0.00043287,120]
[404654040,1770383447507,-500.0,0.00043287,120]
[404654041,1770383447517,-500.0,0.00043287,120]
[404654042,1770383447529,-500.0,0.00043287,120]
[404654043,1770383447539,-510.66191835,0.00043287,120]
[404654044,1770383447548,-291.66265765,0.00043287,120]
[404654045,1770383447558,-983.46,0.00043287,120]
[404654046,1770383447568,-983.46,0.00043287,120]
[404654047,1770383447577,-983.46,0.00043287,120]
[404654048,1770383447587,-983.46,0.00043287,120]
[404654049,1770383447597,-983.46,0.00043287,120]
[404654050,1770383447606,-983.46,0.00043287,120]
[404654051,1770383447616,-983.46,0.00043287,120]
[404654052,1770383447625,-983.46,0.00043287,120]
[404654053,1770383447634,-983.46,0.00043287,120]
[404654054,1770383447643,-983.46,0.00043287,120]
[404654055,1770383447652,-983.46,0.00043287,120]
[404654056,1770383447661,-983.46,0.00043287,120]
[404654057,1770383447670,-983.46,0.00043287,120]
[404654058,1770383447680,-983.46,0.00043287,120]
[404654059,1770383447689,-983.46,0.00043287,120]
[404654060,1770383447698,-983.46,0.00043287,120]
[404654061,1770383447707,-983.46,0.00043287,120]
[404654062,1770383447716,-983.46,0.00043287,120]
[404654063,1770383447726,-983.46,0.00043287,120]
[404654064,1770383447738,-983.46,0.00043287,120]
[404654065,1770383447747,-983.46,0.00043287,120]
[404654066,1770383447756,-983.46,0.00043287,120]
[404654067,1770383447767,-983.46,0.00043287,120]
[404654068,1770383447779,-983.57587732,0.00043287,120]
[404654069,1770383447789,-500.0,0.00043287,120]
[404654070,1770383447798,-500.0,0.00043287,120]
[404654071,1770383447809,-500.0,0.00043287,120]
[404654072,1770383447818,-500.0,0.00043287,120]
[404654073,1770383447827,-500.0,0.00043287,120]
[404654074,1770383447837,-500.0,0.00043287,120]
[404654075,1770383447846,-500.0,0.00043287,120]
[404654076,1770383447855,-500.0,0.00043287,120]
[404654077,1770383447865,-200.0,0.00043287,120]
[404654078,1770383447874,-541.11,0.00043287,120]
[404654079,1770383447883,-541.11,0.00043287,120]
[404654080,1770383447892,-541.11,0.00043287,120]
[404654081,1770383447903,-541.11,0.00043287,120]
[404654082,1770383447912,-541.11,0.00043287,120]
[404654083,1770383447921,-541.11,0.00043287,120]
[404654084,1770383447930,-541.11,0.00043287,120]
[404654085,1770383447940,-541.11,0.00043287,120]
[404654086,1770383447949,-541.11,0.00043287,120]
[404654087,1770383447958,-541.11,0.00043287,120]
[404654088,1770383447967,-541.11,0.00043287,120]
[404654089,1770383447977,-541.11,0.00043287,120]
[404654090,1770383447986,-541.11,0.00043287,120]
[404654091,1770383447996,-541.11,0.00043287,120]
[404654092,1770383448005,-541.11,0.00043287,120]
[404654093,1770383448015,-541.11,0.00043287,120]
[404654094,1770383448026,-541.11,0.00043287,120]
[404654095,1770383448036,-541.11,0.00043287,120]
[404654096,1770383448045,-541.11,0.00043287,120]
[404654097,1770383448055,-541.11,0.00043287,120]
[404654098,1770383448064,-541.11,0.00043287,120]
[404654099,1770383448075,-541.11,0.00043287,120]
[404654100,1770383448084,-541.11,0.00043287,120]
[404654101,1770383448094,-541.14914302,0.00043287,120]
[404654102,1770383448103,-500.0,0.00043287,120]
[404654103,1770383448113,-341.91862226,0.00043287,120]
[404654104,1770383448123,-197.08787335,0.00043287,120]
[404654105,1770383448132,-667.23,0.00043287,120]
[404654106,1770383448142,-667.23,0.00043287,120]
[404654107,1770383448152,-667.23,0.00043287,120]
[404654108,1770383448161,-667.23,0.00043287,120]
[404654109,1770383448171,-667.23,0.00043287,120]
[404654110,1770383448180,-667.23,0.00043287,120]
[404654111,1770383448189,-667.23,0.00043287,120]
[404654112,1770383448198,-667.23,0.00043287,120]
[404654113,1770383448208,-667.23,0.00043287,120]
[404654114,1770383448217,-667.23,0.00043287,120]
[404654115,1770383448227,-667.23,0.00043287,120]
[404654116,1770383448236,-667.23,0.00043287,120]
[404654117,1770383448246,-667.23,0.00043287,120]
[404654118,1770383448256,-667.23,0.00043287,120]
[404654119,1770383448265,-667.23,0.00043287,120]
[404654120,1770383448277,-667.23,0.00043287,120]
[404654121,1770383448287,-667.23,0.00043287,120]
[404654122,1770383448296,-667.23,0.00043287,120]
[404654123,1770383448306,-667.23,0.00043287,120]
[404654124,1770383448315,-667.23,0.00043287,120]
[404654125,1770383448324,-667.23,0.00043287,120]
[404654126,1770383448334,-667.23,0.00043287,120]
[404654127,1770383448343,-667.23,0.00043287,120]
[404654128,1770383448353,-667.31000003,0.00043287,120]
[404654129,1770383448363,-500.0,0.00043287,2]
[404654130,1770383448372,-500.0,0.00043287,2]
[404654131,1770383448383,-500.0,0.00043287,2]
[404654132,1770383448392,-500.0,0.00043287,2]
[404654133,1770383448403,-500.0,0.00043287,2]
[404654134,1770383448412,-501.3992,0.00043287,2]
[404654135,1770383448422,-500.0,0.00043287,120]
[404654136,1770383448432,-500.0,0.00043287,120]
[404654137,1770383448441,-500.0,0.00043287,120]
[404654138,1770383448451,-500.0,0.00043287,120]
[404654139,1770383448461,-500.0,0.00043287,120]
[404654140,1770383448471,-500.0,0.00043287,120]
[404654141,1770383448481,-500.0,0.00043287,120]
[404654142,1770383448491,-500.0,0.00043287,120]
[404654143,1770383448501,-500.0,0.00043287,120]
[404654144,1770383448511,-500.0,0.00043287,120]
[404654145,1770383448521,-500.0,0.00043287,120]
[404654146,1770383448532,-500.0,0.00043287,120]
[404654147,1770383448542,-500.0,0.00043287,120]
[404654148,1770383448552,-528.6380219,0.00043287,120]
[404654149,1770383448562,-200.0,0.00043387,2]
[404654150,1770383448574,-65938.0,0.00043479,30]
[404654151,1770383448585,-1000.0,0.00043481,14]
[404654152,1770383448595,-13000.0,0.000435,120]
[404654153,1770383448604,-1000.0,0.00043547,30]
[404654154,1770383448613,-500.0,0.00043574,60]
[404654155,1770383448632,-800.0,0.00043574,60]
[404654156,1770383448650,-500.0,0.00043574,60]
[404654157,1770383448665,-27100.63,0.000436,2]
[404654158,1770383448676,-2209.90195573,0.0004369,2]
[404654159,1770383448686,-1333.33334,0.0004371,120]
[404654160,1770383448695,-839.0,0.00043711,16]
[404654161,1770383448705,-200.0,0.00043713,2]
[404654162,1770383448717,-25143.0047843,0.0004375,63]
[404654163,1770383448732,-100000.0,0.0004375,120]
[404654164,1770383448742,-151.0,0.0004375,120]
[404654165,1770383448751,-151.0,0.0004375,120]
[404654166,1770383448762,-151.0,0.0004375,120]
[404654167,1770383448771,-1029.45407458,0.000438,30]
[404654168,1770383448784,-1000.0,0.00043821,30]
[404654169,1770383448794,-638.87924173,0.00043835,120]
[404654170,1770383448804,-200.0,0.00043883,2]
[404654171,1770383448814,-2000.0,0.00043899,3]
[404654172,1770383448823,-1271.78,0.00043918,120]
[404654173,1770383448833,-65938.0,0.00043918,30]
[404654174,1770383448843,-200.0,0.00043941,3]
[404654175,1770383448853,-226.0,0.00043956,2]
[404654176,1770383448863,-575.93,0.00043985,30]
[404654177,1770383448873,-575.93,0.00043985,30]
[404654178,1770383448888,-3653.8769002,0.00043986,2]
[404654179,1770383448905,-168178.00127208,0.00043988,2]
[404654180,1770383449006,-816.78701816,0.00043988,2]
[404654181,1770383449134,-2971.765065,0.00012638,2]
[404654182,1770383449235,-824.99620982,0.00012638,2]
[404654183,1770383449291,-1086.88479984,0.00012638,2]
[404654184,1770383449306,-4095.31242003,0.00012638,2]
[404654185,1770383449318,-37168.67320018,0.00012638,2]
[404654186,1770383449329,-6094.98962257,0.00012638,2]
[404654187,1770383449342,-10988.80968687,0.00012638,2]
[404654188,1770383449354,-661.53830446,0.00012638,2]
[404654189,1770383449366,-624.14468358,0.00012638,2]
[404654190,1770383449378,-2505.35903128,0.00012638,2]
[404654191,1770383449499,-7822.97252796,0.00012638,2]
[404654192,1770383464447,600.0,0.00033822,120]
[404654195,1770383584290,50000.0,0.00044122,49]
[404654197,1770383778267,60861.78124984,0.00044122,30]
[404654200,1770383921440,8009.0,0.00044111,120]
[404654204,1770384184876,8637.9,0.00035616,120]
[404654207,1770384332063,331.0,0.0002001,120]
[404654208,1770384394043,1000.0,0.00044115,120]
[404654209,1770384407255,1008.0,0.00044115,120]
[404654210,1770384413921,1000.0,0.00044115,120]
[404654211,1770384416114,-502.86633196,0.00011276,2]
[404654212,1770384421986,300.0,0.000106,3]
[404654213,1770384423884,1052.27433939,0.00044115,120]
[404654214,1770384424091,700.0,0.000107,3]
[404654215,1770384426181,1100.0,0.000108,3]
[404654217,1770384428267,1400.0,0.000109,3]
[404654218,1770384430352,1800.0,0.000129,4]
[404654219,1770384478498,616.07,0.00044115,120]
[404654222,1770384494846,1934.90820227,0.0001,2]
[404654223,1770384506826,2740.47292956,0.0001,2]
[404654224,1770384516532,5000.01,0.0001,2]
[404654225,1770384516553,1990.24300598,0.0001,2]
[404654226,1770384517716,5118.32216997,5.22e-06,30]
[404654229,1770384583552,1600.0,0.00010231,2]
[404654244,1770384631970,-988.28202685,0.00010925,2]
[404654248,1770384631983,-3360.85,0.00010925,2]
[404654250,1770384631994,-93.75797315,0.00010925,2]
[404654251,1770384632003,-1658.43,0.0001095,2]
[404654252,1770384632012,-195.0,0.00010969,2]
[404654253,1770384632022,-1658.43,0.0001097,2]
[404654254,1770384632031,-1151.0,0.00010989,2]
[404654255,1770384632040,-1302.41761385,0.0001099,2]
[404654256,1770384632051,-356.01238615,0.0001099,2]
[404654257,1770384632061,-300.0,0.00011009,2]
[404654258,1770384632072,-1658.43,0.0001101,2]
[404654259,1770384632082,-1658.43,0.0001103,2]
[404654260,1770384632092,-1658.43,0.00011051,2]
[404654261,1770384632102,-1658.43,0.00011071,2]
[404654262,1770384632112,-1658.43,0.00011091,2]
[404654263,1770384632121,-195.0,0.00011101,2]
[404654264,1770384632131,-1658.43,0.00011111,2]
[404654265,1770384632142,-1658.43,0.00011131,2]
[404654266,1770384632153,-1658.43,0.00011151,2]
[404654267,1770384632163,-1658.43,0.00011171,2]
[404654268,1770384632173,-1815.10633301,0.0001118,2]
[404654269,1770384632182,-579.8897286,0.0001118,2]
[404654270,1770384632191,-1867.98117284,0.0001118,2]
[404654271,1770384632201,-196.25665993,0.0001118,2]
[404654272,1770384632210,-272.36407062,0.0001118,2]
[404654273,1770384632220,-1658.43,0.00011192,2]
[404654274,1770384632230,-896.62003267,0.00011197,2]
[404654282,1770384632448,-195.0,0.00011207,2]
[404654284,1770384632458,-1658.43,0.00011212,2]
[404654286,1770384632468,-1658.43,0.00011232,2]
[404654288,1770384632479,-150.0,0.00011251,2]
[404654290,1770384632491,-150.0,0.00011251,2]
[404654292,1770384632501,-1658.43,0.00011252,2]
[404654294,1770384632510,-183.75609216,0.00011268,2]
[404654296,1770384632520,-1658.43,0.00011272,2]
[404654298,1770384632530,-1956.12166804,0.00011276,2]
[404654300,1770384632541,-193.937,0.00011276,2]
[404654302,1770384632551,-150.0,0.00011276,2]
[404654303,1770384632572,-481.23801313,0.00011277,2]
[404654304,1770384632583,-237.97298822,0.00011277,2]
[404654305,1770384632593,-500.0,0.00011277,2]
[404654306,1770384632603,-274.85318708,0.00011277,2]
[404654307,1770384632613,-500.0,0.00011277,2]
[404654308,1770384632623,-500.0,0.00011277,2]
[404654309,1770384632632,-500.0,0.00011277,2]
[404654310,1770384632642,-500.0,0.00011277,2]
[404654311,1770384632651,-500.0,0.00011277,2]
[404654312,1770384632661,-500.0,0.00011277,2]
[404654313,1770384632671,-500.0,0.00011277,2]
[404654314,1770384632680,-243201.24789965,0.00011278,2]
[404654315,1770384632693,-21179.46907113,0.00011278,2]
[404654316,1770384632704,-109887.25568831,0.00011278,2]
[404654317,1770384632715,-264169.86858708,0.00011278,2]
[404654318,1770384632726,-698.60816711,0.00011278,2]
[404654319,1770384632741,-7231.64970911,0.00011278,2]
[404654320,1770384632763,-1326.4511873,0.00011278,2]
[404654321,1770384632776,-577.32562917,0.00011278,2]
[404654322,1770384632787,-7050.0,0.00011278,2]
[404654323,1770384632798,-280.0976,0.00011278,2]
[404654324,1770384632810,-971.9816582,0.00011278,2]
[404654325,1770384632821,-1518.79195812,0.00011278,2]
[404654326,1770384632833,-950.69681676,0.00011278,2]
[404654332,1770384638068,-1853002.94615248,0.00011278,2]
[404654333,1770384638132,-670.41024,0.00011278,2]
[404654334,1770384638146,-956.79071888,0.00011278,2]
[404654335,1770384638249,-1349.7082906,0.00011278,2]
[404654340,1770384640043,-3355.07066291,0.00011278,2]
[404654344,1770384640102,-4580.42236294,0.00011278,2]
[404654346,1770384640218,-277.05,0.00011278,2]
[404654347,1770384640334,-413.8295537,0.00011278,2]
[404654348,1770384640347,-1009.2931987,0.00011278,2]
[404654349,1770384640400,-975341.03484785,0.00011278,2]
[404654350,1770384640410,-1658.43,0.00011292,2]
[404654351,1770384640420,-156.30592186,0.00011306,2]
[404654352,1770384640430,-202.23410169,0.00011306,2]
[404654353,1770384640440,-10350.50172086,0.00011306,2]
[404654354,1770384640450,-154.66036332,0.00011306,2]
[404654355,1770384640460,-10955.9571233,0.00011306,2]
[404654356,1770384640469,-89328.2967,0.00011306,2]
[404654357,1770384640479,-2500.0,0.00011306,2]
[404654358,1770384640489,-1160151.6753,0.00011306,2]
[404654359,1770384640500,-500.0,0.00011306,2]
[404654360,1770384640509,-1658.43,0.00011313,2]
[404654361,1770384640519,-1658.43,0.00011333,2]
[404654362,1770384640528,-324.99,0.00011363,2]
[404654363,1770384640537,-170.574974,0.00011406,2]
[404654364,1770384640547,-6728.3003,0.00011406,2]
[404654365,1770384640559,-151.0,0.00011499,2]
[404654366,1770384640569,-151.0,0.00011499,2]
[404654367,1770384640578,-151.0,0.00011499,2]
[404654368,1770384640588,-151.0,0.00011499,2]
[404654369,1770384640598,-151.0,0.00011499,2]
[404654370,1770384640610,-151.0,0.00011499,2]
[404654371,1770384640621,-151.0,0.00011499,2]
[404654372,1770384640631,-151.0,0.00011499,2]
[404654373,1770384640640,-151.0,0.00011499,2]
[404654374,1770384640650,-151.0,0.00011499,2]
[404654375,1770384640659,-151.0,0.00011499,2]
[404654376,1770384640668,-151.0,0.00011499,2]
[404654377,1770384640677,-151.0,0.00011499,2]
[404654378,1770384640687,-151.0,0.00011499,2]
[404654379,1770384640697,-151.0,0.00011499,2]
[404654380,1770384640706,-151.0,0.00011499,2]
[404654381,1770384640715,-151.0,0.00011499,2]
[404654382,1770384640724,-151.0,0.00011499,2]
[404654383,1770384640735,-151.0,0.00011499,2]
[404654384,1770384640749,-151.0,0.00011499,2]
[404654385,1770384640759,-151.0,0.00011499,2]
[404654386,1770384640768,-151.0,0.00011499,2]
[404654387,1770384640777,-151.0,0.00011499,2]
[404654388,1770384640786,-151.0,0.00011499,2]
[404654389,1770384640796,-151.0,0.00011499,2]
[404654390,1770384640806,-151.0,0.00011499,2]
[404654391,1770384640815,-151.0,0.00011499,2]
[404654392,1770384640825,-153.37287127,0.00011499,2]
[404654393,1770384640835,-577.94638869,0.00011506,2]
[404654394,1770384640845,-1600.0,0.0001151,2]
[404654395,1770384640855,-151.0,0.00011545,2]
[404654396,1770384640865,-500.0,0.0001158,2]
[404654397,1770384640874,-500.0,0.00011606,2]
[404654398,1770384640884,-500.0,0.00011854,2]
[404654399,1770384640894,-195.0,0.00012018,2]